[Event "105th British-ch 2018"]
[Site "Hull"]
[Date "2018.07.28"]
[Round "1"]
[White "Sugden, John N"]
[Black "Palliser, Richard Jd"]
[Result "1/2-1/2"]
[ECO "A43"]
[WhiteElo "2090"]
[BlackElo "2418"]
[Annotator "NA"]
[PlyCount "140"]
[EventDate "2018.07.28"]
[EventType "swiss"]
[EventCountry "GBR"]
[SourceTitle "playchess.com"]
[Source "ChessBase"]
[SourceQuality "1"]
[TimeControl "40/5400+30:1800+30"]

1. e4 {[%emt 0:00:14]} g6 {[%emt 0:00:11]} 2. d4 {[%emt 0:00:25]} Bg7 {[%emt 0:00:05]} 3. c4 {[%emt 0:01:27]} c5 {[%emt 0:00:59]} 4. d5 {[%emt 0:02:03]} d6 {[%emt 0:00:06]} 5. Nc3 {[%emt 0:01:03]} a6 {[%emt 0:15:16]} 6. a4 {[%emt 0:01:26]} e6 {[%emt 0:01:12]} 7. Bd3 {[%emt 0:02:25]} Ne7 {[%emt 0:01:23]} 8. Nf3 {[%emt 0:07:52]} exd5 {[%emt 0:02:50]} 9. cxd5 {[%emt 0:01:56]} O-O {[%emt 0:09:06]} 10. O-O {[%emt 0:03:35]} Bg4 {[%emt 0:07:15]} 11. h3 {[%emt 0:02:43]} Bxf3 {[%emt 0:00:04]} 12. Qxf3 {[%emt 0:00:24]} Nd7 {[%emt 0:00:06]} 13. Qd1 {[%emt 0:08:19]} h6 {[%emt 0:18:11]} 14. f4 {[%emt 0:11:07]} f5 {[%emt 0:01:44]} 15. exf5 {[%emt 0:02:51]} Nxf5 {[%emt 0:07:22]} 16. Bxf5 {[%emt 0:04:12]} gxf5 {[%emt 0:09:00]} 17. Qd3 {[%emt 0:05:43]} Qb6 {[%emt 0:02:52]} 18. a5 {[%emt 0:15:06]} c4+ {[%emt 0:02:24]} 19. Qe3 {[%emt 0:00:24]} Qxe3+ {[%emt 0:04:36]} 20. Bxe3 {[%emt 0:00:08]} Rae8 {[%emt 0:00:03]} 21. Bf2 {[%emt 0:05:15]} Bxc3 {[%emt 0:06:24]} 22. bxc3 {[%emt 0:00:08]} Nf6 {[%emt 0:00:06]} 23. Ra4 {[%emt 0:05:10]} Re4 {[%emt 0:02:40]} 24. Bd4 {[%emt 0:04:07]} Nxd5 {[%emt 0:00:07]} 25. Rxc4 {[%emt 0:01:13]} Nxc3 {[%emt 0:03:07]} 26. Rxc3 {[%emt 0:00:14]} Rxd4 {[%emt 0:00:02]} 27. Rc7 {[%emt 0:02:47]} Rf7 {[%emt 0:00:33]} 28. Rxf7 {[%emt 0:02:03]} Kxf7 {[%emt 0:00:02]} 29. Rb1 {[%emt 0:00:16]} Ke6 {[%emt 0:02:12]} 30. Rxb7 {[%emt 0:00:17]} Rxf4 {[%emt 0:04:19]} 31. Rb6 {[%emt 0:01:49]} Ra4 {[%emt 0:00:10]} 32. Rxa6 {[%emt 0:00:24]} h5 {[%emt 0:01:09]} 33. Kf2 {[%emt 0:02:21]} h4 {[%emt 0:00:34]} 34. Ra8 {[%emt 0:00:55]} Kd5 {[%emt 0:00:42]} 35. a6 {[%emt 0:03:11]} Kc6 {[%emt 0:00:36]} 36. a7 {[%emt 0:00:53]} Kb7 {[%emt 0:00:40]} 37. Rf8 {[%emt 0:00:51]} Kxa7 {[%emt 0:00:07]} 38. Rxf5 {[%emt 0:00:30]} Kb6 {[%emt 0:00:03]} 39. Rh5 {[%emt 0:01:38]} Kc6 {[%emt 0:00:41]} 40. g4 {[%emt 0:00:42]} hxg3+ {[%emt 0:00:58]} 41. Kxg3 {[%emt 0:00:10]} d5 {[%emt 0:01:43]} 42. Kf3 {[%emt 0:06:27]} Kc5 {[%emt 0:01:04]} 43. Ke2 {[%emt 0:03:19]} Kc4 {[%emt 0:00:15]} 44. Rg5 {[%emt 0:02:26]} Ra3 {[%emt 0:06:46]} 45. h4 {[%emt 0:06:23]} d4 {[%emt 0:08:19]} 46. h5 {[%emt 0:06:58]} Ra2+ {[%emt 0:03:27]} 47. Kd1 {[%emt 0:04:05]} Kc3 {[%emt 0:00:40]} 48. Rc5+ {[%emt 0:03:08]} Kd3 {[%emt 0:00:04]} 49. Kc1 {[%emt 0:00:08]} Rh2 {[%emt 0:05:21]} 50. Rg5 {[%emt 0:01:12]} Rh3 {[%emt 0:01:42]} 51. Re5 {[%emt 0:01:28]} Rh1+ {[%emt 0:01:01]} 52. Kb2 {[%emt 0:00:02]} Kd2 {[%emt 0:00:08]} 53. Rg5 {[%emt 0:00:43]} Rh2 {[%emt 0:02:26]} 54. Kb3 {[%emt 0:01:08]} d3 {[%emt 0:00:14]} 55. h6 {[%emt 0:00:30]} Rxh6 {[%emt 0:01:30]} 56. Rg2+ {[%emt 0:00:08]} Ke3 {[%emt 0:01:06]} 57. Rg3+ {[%emt 0:00:23]} Ke2 {[%emt 0:00:04]} 58. Rg2+ {[%emt 0:01:41]} Kf3 {[%emt 0:00:12]} 59. Ra2 {[%emt 0:00:34]} Rd6 {[%emt 0:02:04]} 60. Kc3 {[%emt 0:00:17]} Ke3 {[%emt 0:00:03]} 61. Rh2 {[%emt 0:00:24]} Rc6+ {[%emt 0:00:07]} 62. Kb2 {[%emt 0:00:21]} Re6 {[%emt 0:03:03]} 63. Kc1 {[%emt 0:00:36]} Rf6 {[%emt 0:00:34]} 64. Rh3+ {[%emt 0:00:21]} Ke2 {[%emt 0:00:14]} 65. Rh2+ {[%emt 0:00:04]} Ke3 {[%emt 0:00:09]} 66. Rh3+ {[%emt 0:00:06]} Kd4 {[%emt 0:00:23]} 67. Rh8 {[%emt 0:00:18]} Rc6+ {[%emt 0:00:21]} 68. Kd2 {[%emt 0:00:18]} Rc2+ {[%emt 0:00:03]} 69. Kd1 {[%emt 0:00:09]} Rc5 {[%emt 0:00:08]} 70. Kd2 {[%emt 0:00:41]} Rc2+ {[%emt 0:00:06]} 1/2-1/2

[Event "105th British-ch 2018"]
[Site "Hull"]
[Date "2018.07.28"]
[Round "1"]
[White "Price, Gwilym"]
[Black "Houska, Jovanka"]
[Result "1-0"]
[ECO "B12"]
[WhiteElo "2085"]
[BlackElo "2406"]
[Annotator "NA"]
[PlyCount "83"]
[EventDate "2018.07.28"]
[EventType "swiss"]
[EventCountry "GBR"]
[SourceTitle "playchess.com"]
[Source "ChessBase"]
[SourceQuality "1"]
[TimeControl "40/5400+30:1800+30"]

1. e4 {[%emt 0:00:01]} c6 {[%emt 0:00:11]} 2. d4 {[%emt 0:00:03]} d5 {[%emt 0:00:04]} 3. e5 {[%emt 0:00:06]} Bf5 {[%emt 0:00:54]} 4. h4 {[%emt 0:00:09]} c5 {[%emt 0:01:11]} 5. dxc5 {[%emt 0:01:33]} Nc6 {[%emt 0:00:05]} 6. Nf3 {[%emt 0:04:09]} e6 {[%emt 0:00:23]} 7. Be3 {[%emt 0:00:33]} Nh6 {[%emt 0:00:14]} 8. c3 {[%emt 0:01:07]} Ng4 {[%emt 0:01:02]} 9. Bd4 {[%emt 0:00:39]} Be7 {[%emt 0:04:50]} 10. b4 {[%emt 0:07:43]} f6 {[%emt 0:03:38]} 11. Bb5 {[%emt 0:01:18]} fxe5 {[%emt 0:06:22]} 12. Nxe5 {[%emt 0:02:10]} Ngxe5 {[%emt 0:00:38]} 13. Bxe5 {[%emt 0:00:09]} O-O {[%emt 0:00:09]} 14. Bxc6 {[%emt 0:03:00]} Bxh4 {[%emt 0:29:40]} 15. g3 {[%emt 0:03:36]} Bf6 {[%emt 0:01:16]} 16. Bxf6 {[%emt 0:08:17]} Qxf6 {[%emt 0:00:04]} 17. Bxb7 {[%emt 0:00:45]} Bxb1 {[%emt 0:09:29]} 18. Qd4 {[%emt 0:12:59]} Qf3 {[%emt 0:01:01]} 19. Rh2 {[%emt 0:01:26]} Bd3 {[%emt 0:08:29]} 20. Qe3 {[%emt 0:00:51]} Qxe3+ {[%emt 0:04:38]} 21. fxe3 {[%emt 0:00:05]} Rab8 {[%emt 0:00:02]} 22. Kd2 {[%emt 0:00:34]} Rxb7 {[%emt 0:02:01]} 23. Kxd3 {[%emt 0:00:13]} Rf3 {[%emt 0:00:05]} 24. Rg2 {[%emt 0:01:41]} Kf7 {[%emt 0:03:04]} 25. a4 {[%emt 0:01:10]} a6 {[%emt 0:00:15]} 26. Rb1 {[%emt 0:01:34]} Rc7 {[%emt 0:02:49]} 27. Kd4 {[%emt 0:01:42]} e5+ {[%emt 0:02:46]} 28. Kxd5 {[%emt 0:01:03]} Rxe3 {[%emt 0:00:15]} 29. Kd6 {[%emt 0:00:24]} Re7 {[%emt 0:01:35]} 30. b5 {[%emt 0:02:25]} Rd3+ {[%emt 0:01:02]} 31. Kc6 {[%emt 0:00:05]} Re6+ {[%emt 0:09:30]} 32. Kc7 {[%emt 0:00:55]} axb5 {[%emt 0:01:13]} 33. axb5 {[%emt 0:00:23]} Rxc3 {[%emt 0:00:04]} 34. c6 {[%emt 0:01:28]} e4 {[%emt 0:01:23]} 35. Rd2 {[%emt 0:07:20]} e3 {[%emt 0:03:05]} 36. Rd6 {[%emt 0:02:18]} e2 {[%emt 0:02:10]} 37. Re1 {[%emt 0:01:42]} Re5 {[%emt 0:01:31]} 38. b6 {[%emt 0:00:58]} Rf3 {[%emt 0:01:35]} 39. b7 {[%emt 0:00:28]} Rf1 {[%emt 0:00:36]} 40. Rxe2 {[%emt 0:00:15]} Rxe2 {[%emt 0:00:31]} 41. b8=Q {[%emt 0:00:17]} Re7+ {[%emt 0:00:08]} 42. Rd7 {[%emt 0:00:05] Ke8 [%emt 00:00:45]} 1-0

[Event "105th British-ch 2018"]
[Site "Hull"]
[Date "2018.07.28"]
[Round "1"]
[White "Verma, Aditya"]
[Black "McPhillips, Joseph"]
[Result "0-1"]
[ECO "C01"]
[WhiteElo "2084"]
[BlackElo "2402"]
[Annotator "NA"]
[PlyCount "70"]
[EventDate "2018.07.28"]
[EventType "swiss"]
[EventCountry "GBR"]
[SourceTitle "playchess.com"]
[Source "ChessBase"]
[SourceQuality "1"]
[TimeControl "40/5400+30:1800+30"]

1. e4 {[%emt 0:00:02]} e6 {[%emt 0:00:05]} 2. d4 {[%emt 0:00:04]} d5 {[%emt 0:00:05]} 3. exd5 {[%emt 0:00:04]} exd5 {[%emt 0:00:05]} 4. Bf4 {[%emt 0:00:14]} Ne7 {[%emt 0:07:42]} 5. Nf3 {[%emt 0:01:57]} Ng6 {[%emt 0:10:19]} 6. Bg3 {[%emt 0:04:00]} Bd6 {[%emt 0:05:05]} 7. Be2 {[%emt 0:03:45]} O-O {[%emt 0:02:34]} 8. O-O {[%emt 0:00:51]} Nf4 {[%emt 0:01:17]} 9. Bxf4 {[%emt 0:00:42]} Bxf4 {[%emt 0:00:02]} 10. Nbd2 {[%emt 0:05:45]} Nc6 {[%emt 0:33:38]} 11. c3 {[%emt 0:00:42]} Ne7 {[%emt 0:00:40]} 12. Re1 {[%emt 0:01:43]} Ng6 {[%emt 0:00:31]} 13. Bd3 {[%emt 0:24:48]} c6 {[%emt 0:00:40]} 14. Qc2 {[%emt 0:13:39]} Qf6 {[%emt 0:01:01]} 15. g3 {[%emt 0:07:55]} Bd6 {[%emt 0:01:27]} 16. Re3 {[%emt 0:02:28]} c5 {[%emt 0:02:47]} 17. Rae1 {[%emt 0:02:36]} c4 {[%emt 0:04:46]} 18. Bf1 {[%emt 0:00:08]} Bf5 {[%emt 0:00:26]} 19. Qd1 {[%emt 0:03:16]} Qd8 {[%emt 0:02:11]} 20. Bg2 {[%emt 0:01:24]} b5 {[%emt 0:01:19]} 21. h4 {[%emt 0:01:40]} Bg4 {[%emt 0:01:04]} 22. Qc2 {[%emt 0:04:55]} Qd7 {[%emt 0:00:35]} 23. Ng5 {[%emt 0:03:58]} Bf5 {[%emt 0:01:16]} 24. Qc1 {[%emt 0:02:09]} Ne7 {[%emt 0:00:41]} 25. Ndf3 {[%emt 0:05:39]} Nc6 {[%emt 0:04:01]} 26. Nd2 {[%emt 0:04:32]} h6 {[%emt 0:01:17]} 27. Ngf3 {[%emt 0:00:32]} b4 {[%emt 0:00:47]} 28. Nh2 {[%emt 0:01:17]} bxc3 {[%emt 0:01:49]} 29. bxc3 {[%emt 0:00:06]} Ne7 {[%emt 0:00:26]} 30. Nhf3 {[%emt 0:01:27]} Rab8 {[%emt 0:01:03]} 31. Ne5 {[%emt 0:00:36]} Qa4 {[%emt 0:00:26]} 32. g4 {[%emt 0:01:22]} Be6 {[%emt 0:02:59]} 33. g5 {[%emt 0:00:41]} Nf5 {[%emt 0:01:16]} 34. gxh6 {[%emt 0:00:25]} Ba3 {[%emt 0:03:29]} 35. Qa1 {[%emt 0:01:11]} Bb2 {[%emt 0:00:53]} 0-1

[Event "105th British-ch 2018"]
[Site "Hull"]
[Date "2018.07.28"]
[Round "1"]
[White "Jamroz, Krzysztof"]
[Black "Murphy, Conor E"]
[Result "1/2-1/2"]
[ECO "B92"]
[WhiteElo "2026"]
[BlackElo "2336"]
[Annotator "NA"]
[PlyCount "104"]
[EventDate "2018.07.28"]
[EventType "swiss"]
[EventCountry "GBR"]
[SourceTitle "playchess.com"]
[Source "ChessBase"]
[SourceQuality "1"]
[TimeControl "40/5400+30:1800+30"]

1. e4 {[%emt 0:15:56]} c5 {[%emt 0:02:31]} 2. Nf3 {[%emt 0:02:26]} d6 {[%emt 0:00:07]} 3. d4 {[%emt 0:01:37]} cxd4 {[%emt 0:00:05]} 4. Nxd4 {[%emt 0:00:04]} Nf6 {[%emt 0:00:06]} 5. Nc3 {[%emt 0:00:17]} a6 {[%emt 0:00:05]} 6. Be2 {[%emt 0:01:45]} e5 {[%emt 0:00:07]} 7. Nb3 {[%emt 0:00:31]} Be7 {[%emt 0:00:22]} 8. Be3 {[%emt 0:00:30]} Be6 {[%emt 0:05:23]} 9. O-O {[%emt 0:01:53]} O-O {[%emt 0:02:43]} 10. f4 {[%emt 0:00:52]} exf4 {[%emt 0:07:40]} 11. Bxf4 {[%emt 0:00:27]} Nc6 {[%emt 0:01:15]} 12. Qe1 {[%emt 0:00:48]} Nd7 {[%emt 0:10:26]} 13. Rd1 {[%emt 0:02:59]} Nde5 {[%emt 0:06:50]} 14. Kh1 {[%emt 0:14:10]} Rc8 {[%emt 0:12:35]} 15. Nd5 {[%emt 0:07:26]} Bg5 {[%emt 0:02:27]} 16. Qd2 {[%emt 0:04:56]} h6 {[%emt 0:07:34]} 17. c3 {[%emt 0:04:51]} Re8 {[%emt 0:07:21]} 18. Bxg5 {[%emt 0:07:56]} Qxg5 {[%emt 0:01:22]} 19. Qxg5 {[%emt 0:00:40]} hxg5 {[%emt 0:00:05]} 20. Ne3 {[%emt 0:00:37]} Rcd8 {[%emt 0:03:37]} 21. Rd2 {[%emt 0:02:48]} Rd7 {[%emt 0:04:44]} 22. Rfd1 {[%emt 0:00:10]} Red8 {[%emt 0:00:13]} 23. c4 {[%emt 0:03:17]} g6 {[%emt 0:02:09]} 24. Nd5 {[%emt 0:00:52]} Bxd5 {[%emt 0:02:23]} 25. exd5 {[%emt 0:04:47]} Ne7 {[%emt 0:00:15]} 26. Nd4 {[%emt 0:00:41]} Kg7 {[%emt 0:05:38]} 27. Rf1 {[%emt 0:04:34]} Rh8 {[%emt 0:01:23]} 28. Nf3 {[%emt 0:00:43]} Nxf3 {[%emt 0:00:54]} 29. Rxf3 {[%emt 0:02:53]} Nf5 {[%emt 0:01:27]} 30. Rc3 {[%emt 0:01:42]} Rc7 {[%emt 0:01:13]} 31. Kg1 {[%emt 0:01:48]} Rh4 {[%emt 0:02:22]} 32. g3 {[%emt 0:02:55]} Rh8 {[%emt 0:02:37]} 33. Rb3 {[%emt 0:01:27]} Rd8 {[%emt 0:01:17]} 34. a4 {[%emt 0:01:55]} Ne7 {[%emt 0:01:23]} 35. a5 {[%emt 0:00:22]} Ng8 {[%emt 0:00:11]} 36. Rb6 {[%emt 0:01:07]} Nf6 {[%emt 0:00:10]} 37. Rd4 {[%emt 0:00:32]} Ne8 {[%emt 0:06:46]} 38. b4 {[%emt 0:01:34]} Re7 {[%emt 0:00:39]} 39. Kf2 {[%emt 0:00:27]} f5 {[%emt 0:00:41]} 40. c5 {[%emt 0:01:18]} dxc5 {[%emt 0:00:27]} 41. bxc5 {[%emt 0:00:10]} Rc7 {[%emt 0:15:24]} 42. c6 {[%emt 0:07:20]} bxc6 {[%emt 0:00:48]} 43. Bxa6 {[%emt 0:00:10]} cxd5 {[%emt 0:02:00]} 44. Bb7 {[%emt 0:00:16]} Nd6 {[%emt 0:02:16]} 45. Rxd5 {[%emt 0:04:48]} Nxb7 {[%emt 0:05:04]} 46. Rxb7 {[%emt 0:00:08]} Rxb7 {[%emt 0:00:12]} 47. Rxd8 {[%emt 0:00:05]} Rb2+ {[%emt 0:00:21]} 48. Kg1 {[%emt 0:00:07]} Ra2 {[%emt 0:00:29]} 49. Ra8 {[%emt 0:00:07]} f4 {[%emt 0:02:55]} 50. g4 {[%emt 0:00:30]} f3 {[%emt 0:02:03]} 51. h3 {[%emt 0:01:37]} Rg2+ {[%emt 0:00:06]} 52. Kf1 {[%emt 0:00:05]} Ra2 {[%emt 0:01:06]} 1/2-1/2

[Event "105th British-ch 2018"]
[Site "Hull"]
[Date "2018.07.28"]
[Round "1"]
[White "Miller, Dominic"]
[Black "Derakhshani, Borna"]
[Result "0-1"]
[ECO "B19"]
[WhiteElo "2017"]
[BlackElo "2315"]
[Annotator "NA"]
[PlyCount "52"]
[EventDate "2018.07.28"]
[EventType "swiss"]
[EventCountry "GBR"]
[SourceTitle "playchess.com"]
[Source "ChessBase"]
[SourceQuality "1"]
[TimeControl "40/5400+30:1800+30"]

1. e4 {[%emt 0:00:02]} c6 {[%emt 0:00:05]} 2. d4 {[%emt 0:00:25]} d5 {[%emt 0:00:05]} 3. Nd2 {[%emt 0:00:06]} dxe4 {[%emt 0:00:05]} 4. Nxe4 {[%emt 0:00:04]} Bf5 {[%emt 0:00:12]} 5. Ng3 {[%emt 0:00:25]} Bg6 {[%emt 0:00:07]} 6. h4 {[%emt 0:00:16]} h6 {[%emt 0:00:05]} 7. Nf3 {[%emt 0:00:03]} Nd7 {[%emt 0:00:03]} 8. h5 {[%emt 0:00:13]} Bh7 {[%emt 0:00:07]} 9. Bd3 {[%emt 0:00:04]} Bxd3 {[%emt 0:00:06]} 10. Qxd3 {[%emt 0:00:03]} e6 {[%emt 0:00:13]} 11. Bd2 {[%emt 0:01:04]} Ngf6 {[%emt 0:00:14]} 12. O-O-O {[%emt 0:00:14]} Be7 {[%emt 0:00:14]} 13. Kb1 {[%emt 0:01:20]} Qb6 {[%emt 0:00:14]} 14. Rhe1 {[%emt 0:01:30]} O-O {[%emt 0:00:10]} 15. Nf5 {[%emt 0:00:06]} exf5 {[%emt 0:00:08]} 16. Rxe7 {[%emt 0:00:05]} Qd8 {[%emt 0:00:04]} 17. Re2 {[%emt 0:02:51]} Ne4 {[%emt 0:02:39]} 18. Be1 {[%emt 0:00:10]} Re8 {[%emt 0:09:52]} 19. g3 {[%emt 0:27:56]} Qe7 {[%emt 0:10:27]} 20. Ka1 {[%emt 0:00:47]} Rad8 {[%emt 0:02:51]} 21. Nh4 {[%emt 0:07:25]} Qg5 {[%emt 0:47:58]} 22. Qf3 {[%emt 0:15:46]} Qg4 {[%emt 0:01:01]} 23. Qxg4 {[%emt 0:06:39]} fxg4 {[%emt 0:00:04]} 24. Bb4 {[%emt 0:00:14]} Ndf6 {[%emt 0:01:57]} 25. Nf5 {[%emt 0:03:30]} c5 {[%emt 0:07:11]} 26. Ba3 {[%emt 0:00:10]} Re5 {[%emt 0:01:54]} 0-1

[Event "105th British-ch 2018"]
[Site "Hull"]
[Date "2018.07.28"]
[Round "1"]
[White "Young, Daniel J"]
[Black "Kolbus, Dietmar"]
[Result "1/2-1/2"]
[ECO "B12"]
[WhiteElo "1962"]
[BlackElo "2303"]
[Annotator "NA"]
[PlyCount "81"]
[EventDate "2018.07.28"]
[EventType "swiss"]
[EventCountry "GBR"]
[SourceTitle "playchess.com"]
[Source "ChessBase"]
[SourceQuality "1"]
[TimeControl "40/5400+30:1800+30"]

1. e4 {[%emt 0:00:02]} c6 {[%emt 0:00:05]} 2. d4 {[%emt 0:00:21]} d5 {[%emt 0:00:05]} 3. e5 {[%emt 0:00:12]} Bf5 {[%emt 0:00:08]} 4. Nf3 {[%emt 0:00:15]} e6 {[%emt 0:00:08]} 5. Be2 {[%emt 0:00:20]} Nd7 {[%emt 0:00:25]} 6. O-O {[%emt 0:00:36]} h6 {[%emt 0:02:08]} 7. Nbd2 {[%emt 0:01:29]} Bh7 {[%emt 0:00:32]} 8. Nb3 {[%emt 0:00:39]} Ne7 {[%emt 0:00:47]} 9. a4 {[%emt 0:02:29]} a5 {[%emt 0:00:22]} 10. c3 {[%emt 0:05:25]} Qc7 {[%emt 0:05:49]} 11. Bd2 {[%emt 0:02:31]} Nc8 {[%emt 0:01:46]} 12. Ne1 {[%emt 0:02:29]} Be7 {[%emt 0:02:25]} 13. Bd3 {[%emt 0:01:15]} O-O {[%emt 0:05:54]} 14. Qg4 {[%emt 0:05:53]} f5 {[%emt 0:03:12]} 15. exf6 {[%emt 0:01:07]} Rxf6 {[%emt 0:00:16]} 16. Bxh7+ {[%emt 0:01:54]} Kxh7 {[%emt 0:00:06]} 17. Nd3 {[%emt 0:18:36]} e5 {[%emt 0:05:06]} 18. Nxe5 {[%emt 0:09:32]} Nxe5 {[%emt 0:00:16]} 19. dxe5 {[%emt 0:00:10]} Qxe5 {[%emt 0:00:05]} 20. Rae1 {[%emt 0:01:15]} Qf5 {[%emt 0:00:48]} 21. Qxf5+ {[%emt 0:01:54]} Rxf5 {[%emt 0:00:03]} 22. Be3 {[%emt 0:05:29]} Bf8 {[%emt 0:02:22]} 23. Bc5 {[%emt 0:04:01]} Bxc5 {[%emt 0:25:58]} 24. Nxc5 {[%emt 0:00:09]} b6 {[%emt 0:10:18]} 25. Ne6 {[%emt 0:01:05]} Ra7 {[%emt 0:02:55]} 26. Nd4 {[%emt 0:01:20]} Rf6 {[%emt 0:01:34]} 27. Re8 {[%emt 0:03:19]} Ne7 {[%emt 0:01:44]} 28. Re1 {[%emt 0:01:29]} Nf5 {[%emt 0:03:27]} 29. Nxf5 {[%emt 0:01:43]} Rxf5 {[%emt 0:00:02]} 30. Rb8 {[%emt 0:02:32]} d4 {[%emt 0:01:44]} 31. cxd4 {[%emt 0:03:00]} b5 {[%emt 0:02:01]} 32. axb5 {[%emt 0:06:26]} Rxb5 {[%emt 0:01:57]} 33. Rxb5 {[%emt 0:02:45]} cxb5 {[%emt 0:00:02]} 34. Re5 {[%emt 0:05:00]} Rd7 {[%emt 0:00:39]} 35. Rxb5 {[%emt 0:00:49]} Rxd4 {[%emt 0:00:06]} 36. g3 {[%emt 0:00:18]} Rd1+ {[%emt 0:01:55]} 37. Kg2 {[%emt 0:00:09]} a4 {[%emt 0:00:12]} 38. Ra5 {[%emt 0:02:08]} Rd2 {[%emt 0:00:13]} 39. Rxa4 {[%emt 0:00:20]} Rxb2 {[%emt 0:00:05]} 40. h4 {[%emt 0:01:00]} h5 {[%emt 0:00:30]} 41. Ra5 {[%emt 0:01:03]} 1/2-1/2

[Event "105th British-ch 2018"]
[Site "Hull"]
[Date "2018.07.29"]
[Round "2"]
[White "Murphy, Conor E"]
[Black "Young"]
[Result "1-0"]
[ECO "B38"]
[WhiteElo "2336"]
[BlackElo "1962"]
[Annotator "NA"]
[PlyCount "73"]
[EventDate "2018.07.28"]
[EventType "swiss"]
[EventCountry "GBR"]
[SourceTitle "playchess.com"]
[Source "ChessBase"]
[SourceQuality "1"]
[TimeControl "40/5400+30:1800+30"]

1. e4 {[%emt 0:01:37]} c5 {[%emt 0:01:04]} 2. Nf3 {[%emt 0:00:06]} Nc6 {[%emt 0:00:13]} 3. d4 {[%emt 0:00:33]} cxd4 {[%emt 0:00:13]} 4. Nxd4 {[%emt 0:00:04]} g6 {[%emt 0:00:21]} 5. c4 {[%emt 0:00:05]} Bg7 {[%emt 0:00:53]} 6. Be3 {[%emt 0:00:07]} Qb6 {[%emt 0:02:22]} 7. Nb5 {[%emt 0:17:17]} Qa5+ {[%emt 0:00:27]} 8. N5c3 {[%emt 0:00:51]} d6 {[%emt 0:05:19]} 9. Be2 {[%emt 0:08:14]} Qb4 {[%emt 0:04:42]} 10. Qd2 {[%emt 0:02:55]} Nf6 {[%emt 0:01:38]} 11. f3 {[%emt 0:13:56]} O-O {[%emt 0:02:27]} 12. O-O {[%emt 0:03:48]} Be6 {[%emt 0:04:11]} 13. a3 {[%emt 0:05:19]} Qa5 {[%emt 0:02:15]} 14. Ra2 {[%emt 0:05:38]} Rfc8 {[%emt 0:11:32]} 15. b4 {[%emt 0:03:02]} Qd8 {[%emt 0:00:42]} 16. Nd5 {[%emt 0:01:01]} Ne5 {[%emt 0:07:04]} 17. Rc2 {[%emt 0:02:50]} Nfd7 {[%emt 0:03:12]} 18. f4 {[%emt 0:07:28]} Ng4 {[%emt 0:07:38]} 19. Bxg4 {[%emt 0:07:54]} Bxg4 {[%emt 0:00:11]} 20. f5 {[%emt 0:00:36]} gxf5 {[%emt 0:09:54]} 21. exf5 {[%emt 0:01:08]} Ne5 {[%emt 0:02:22]} 22. c5 {[%emt 0:04:47]} Qd7 {[%emt 0:04:11]} 23. h3 {[%emt 0:01:13]} e6 {[%emt 0:05:34]} 24. hxg4 {[%emt 0:02:01]} exd5 {[%emt 0:00:19]} 25. Bh6 {[%emt 0:03:02]} Bxh6 {[%emt 0:04:34]} 26. Qxh6 {[%emt 0:00:04]} Qd8 {[%emt 0:00:13]} 27. f6 {[%emt 0:04:47]} Qf8 {[%emt 0:00:29]} 28. Qh5 {[%emt 0:00:12]} Kh8 {[%emt 0:02:14]} 29. Rc3 {[%emt 0:00:28]} Qg8 {[%emt 0:00:58]} 30. cxd6 {[%emt 0:00:26]} Nxg4 {[%emt 0:02:03]} 31. Rg3 {[%emt 0:01:25]} Rc4 {[%emt 0:00:37]} 32. Nd2 {[%emt 0:00:51]} Rd4 {[%emt 0:01:10]} 33. Nf3 {[%emt 0:00:48]} Rf4 {[%emt 0:00:59]} 34. Ne5 {[%emt 0:02:58]} Rxf1+ {[%emt 0:01:06]} 35. Kxf1 {[%emt 0:00:05]} Nh2+ {[%emt 0:02:50]} 36. Qxh2 {[%emt 0:00:20]} Qe8 {[%emt 0:00:09]} 37. Rh3 {[%emt 0:00:19]} 1-0

[Event "105th British-ch 2018"]
[Site "Hull"]
[Date "2018.07.29"]
[Round "2"]
[White "Britton, Richard"]
[Black "McDougall, William M"]
[Result "0-1"]
[ECO "B52"]
[WhiteElo "2249"]
[BlackElo "2056"]
[Annotator "NA"]
[PlyCount "70"]
[EventDate "2018.07.28"]
[EventType "swiss"]
[EventCountry "GBR"]
[SourceTitle "playchess.com"]
[Source "ChessBase"]
[SourceQuality "1"]
[TimeControl "40/5400+30:1800+30"]

1. e4 {[%emt 0:00:02]} c5 {[%emt 0:00:22]} 2. Nf3 {[%emt 0:00:04]} d6 {[%emt 0:00:06]} 3. Bb5+ {[%emt 0:01:33]} Bd7 {[%emt 0:01:02]} 4. Bxd7+ {[%emt 0:00:06]} Nxd7 {[%emt 0:00:05]} 5. O-O {[%emt 0:00:09]} Ngf6 {[%emt 0:00:38]} 6. Re1 {[%emt 0:00:10]} Rc8 {[%emt 0:01:36]} 7. c3 {[%emt 0:08:24]} e6 {[%emt 0:02:28]} 8. d4 {[%emt 0:01:11]} cxd4 {[%emt 0:03:31]} 9. cxd4 {[%emt 0:00:05]} Be7 {[%emt 0:02:29]} 10. Nc3 {[%emt 0:01:12]} Nb6 {[%emt 0:02:31]} 11. a4 {[%emt 0:11:54]} O-O {[%emt 0:01:43]} 12. Qb3 {[%emt 0:08:23]} d5 {[%emt 0:20:33]} 13. e5 {[%emt 0:09:04]} Ne4 {[%emt 0:05:22]} 14. Nxe4 {[%emt 0:05:14]} dxe4 {[%emt 0:00:03]} 15. Rxe4 {[%emt 0:00:08]} Qd5 {[%emt 0:02:11]} 16. Qxd5 {[%emt 0:00:28]} Nxd5 {[%emt 0:00:06]} 17. Kf1 {[%emt 0:08:57]} Rc6 {[%emt 0:05:39]} 18. Re2 {[%emt 0:06:10]} Rfc8 {[%emt 0:02:08]} 19. Bd2 {[%emt 0:01:38]} Rc2 {[%emt 0:08:05]} 20. Rb1 {[%emt 0:11:24]} a6 {[%emt 0:06:32]} 21. g3 {[%emt 0:14:38]} h6 {[%emt 0:01:46]} 22. h4 {[%emt 0:00:15]} b5 {[%emt 0:01:55]} 23. axb5 {[%emt 0:00:25]} axb5 {[%emt 0:00:02]} 24. Ne1 {[%emt 0:01:30]} R2c4 {[%emt 0:04:16]} 25. Be3 {[%emt 0:01:13]} g5 {[%emt 0:03:00]} 26. h5 {[%emt 0:01:07]} Bd8 {[%emt 0:07:32]} 27. b3 {[%emt 0:01:25]} R4c6 {[%emt 0:02:11]} 28. Bd2 {[%emt 0:00:17]} Bb6 {[%emt 0:01:14]} 29. Re4 {[%emt 0:01:52]} f5 {[%emt 0:02:26]} 30. exf6 {[%emt 0:00:32]} Nxf6 {[%emt 0:00:01]} 31. Re5 {[%emt 0:00:31]} Bxd4 {[%emt 0:01:50]} 32. Rxb5 {[%emt 0:00:07]} Ne4 {[%emt 0:01:07]} 33. Nf3 {[%emt 0:02:12]} Bxf2 {[%emt 0:01:48]} 34. g4 {[%emt 0:03:06]} Rf8 {[%emt 0:01:54]} 35. Bb4 {[%emt 0:01:04]} Rxf3 {[%emt 0:01:23]} 0-1